fUST/lending_fUST_20241229
["ID","MTS","AMOUNT","RATE_DAILY","PERIOD"]
[346969808,1735439450066,-151.0,0.00017438,2]
[346969809,1735439450076,-165.67760927,0.00017438,2]
[346969810,1735439450088,-334.32239073,0.00017438,2]
[346969811,1735439450098,-151.0,0.00017438,2]
[346969812,1735439450107,-151.0,0.00017438,2]
[346969813,1735439450116,-151.0,0.00017438,2]
[346969814,1735439450126,-165.858152,0.00017438,2]
[346969815,1735439450135,-500.0,0.00017438,2]
[346969816,1735439450144,-401.40842494,0.00017467,2]
[346969817,1735439450153,-213.7567436,0.00017474,2]
[346969818,1735439450163,-471.0087729,0.000175,2]
[346969819,1735439450173,-151.0,0.000175,2]
[346969820,1735439450182,-1936.78,0.00017585,2]
[346969821,1735439450191,-849.27,0.00017585,2]
[346969822,1735439450201,-500.0,0.00017585,2]
[346969823,1735439450210,-500.0,0.00017585,2]
[346969824,1735439450220,-745.36,0.00017585,2]
[346969825,1735439450230,-1218.41,0.00017585,2]
[346969826,1735439450240,-2728.45,0.00017599,2]
[346969827,1735439450249,-2728.45,0.00017599,2]
[346969828,1735439450259,-300.0,0.000176,2]
[346969829,1735439450269,-294.88705877,0.000176,4]
[346969830,1735439450279,-500.0,0.00017645,2]
[346969831,1735439450288,-630.39,0.00017645,2]
[346969832,1735439450297,-630.39,0.00017645,2]
[346969833,1735439450307,-630.39,0.00017645,2]
[346969834,1735439450317,-955.58845707,0.00017645,2]
[346969835,1735439450393,-1772.86154293,0.00017645,2]
[346969836,1735439450403,-2595.93069046,0.00017645,2]
[346969842,1735440337145,-400.0,0.00012004,2]
[346969843,1735440337166,-400.0,0.00012125,2]
[346969844,1735440337185,-1254.9776554,0.00012247,2]
[346969845,1735440337206,-949.50115775,0.00012684,2]
[346969846,1735440427098,-177.7651895,0.00012431,2]
[346969847,1735440427120,-451.85580639,0.00012557,2]
[346969848,1735440427142,-300.0,0.00012683,2]
[346969849,1735440427162,-601.90464306,0.00012684,2]
[346969850,1735440428096,-1000.72618285,0.00012684,2]
[346969851,1735440435124,-2053.20714476,0.00012684,2]
[346969852,1735440440120,-277.99055866,0.00012684,2]
[346969854,1735440546220,-10481.12966162,0.00012684,2]
[346969855,1735440546241,-750.28655814,0.00012899,2]
[346969856,1735440546261,-476.82465506,0.000129,2]
[346969857,1735440546282,-500.0,0.00012995,2]
[346969858,1735440546302,-197.08674961,0.00012995,2]
[346969859,1735440546323,-500.0,0.00012995,2]
[346969860,1735440546345,-358.22675375,0.00012995,2]
[346969861,1735440546366,-500.0,0.00012996,2]
[346969862,1735440546386,-500.0,0.00012996,2]
[346969863,1735440546407,-500.0,0.00012996,2]
[346969864,1735440546430,-500.0,0.00012996,2]
[346969865,1735440546450,-500.0,0.00012996,2]
[346969866,1735440546471,-500.0,0.00012996,2]
[346969867,1735440546491,-500.0,0.00012996,2]
[346969868,1735440546513,-500.0,0.00012996,2]
[346969869,1735440546533,-500.0,0.00012996,2]
[346969870,1735440546554,-500.0,0.00012996,2]
[346969871,1735440546575,-500.0,0.00012996,2]
[346969872,1735440546596,-500.0,0.00012996,2]
[346969873,1735440546617,-500.0,0.00012996,2]
[346969874,1735440546637,-507.59452086,0.00012996,2]
[346969875,1735440546657,-500.0,0.00012996,2]
[346969876,1735440546678,-500.0,0.00012996,2]
[346969877,1735440546698,-504.24253105,0.00012996,2]
[346969878,1735440546718,-500.0,0.00012996,2]
[346969879,1735440546738,-500.0,0.00012996,2]
[346969880,1735440546758,-500.0,0.00012996,2]
[346969881,1735440546781,-363.98724251,0.00012996,2]
[346969882,1735440546802,-500.0,0.00012996,2]
[346969883,1735440546824,-2075.01,0.00012996,2]
[346969884,1735440546844,-500.0,0.00012996,2]
[346969885,1735440546864,-500.0,0.00012996,2]
[346969886,1735440546885,-500.0,0.00012996,2]
[346969887,1735440546906,-500.0,0.00012996,2]
[346969888,1735440546926,-500.0,0.00012996,2]
[346969889,1735440546947,-500.0,0.00012996,2]
[346969890,1735440546970,-500.0,0.00012996,2]
[346969891,1735440546993,-1130.65,0.00012996,2]
[346969892,1735440547013,-500.0,0.00012997,2]
[346969893,1735440547033,-187.09110776,0.00012997,2]
[346969894,1735440547054,-228.15386146,0.00012997,2]
[346969895,1735440547075,-500.0,0.00012997,2]
[346969896,1735440547096,-500.0,0.00012997,2]
[346969897,1735440547116,-500.0,0.00012997,2]
[346969898,1735440547229,-500.0,0.00012997,2]
[346969899,1735440547250,-699.69,0.00012997,2]
[346969900,1735440547271,-500.0,0.00012997,2]
[346969901,1735440547291,-500.0,0.00012997,2]
[346969902,1735440547312,-500.0,0.00012997,2]
[346969903,1735440547333,-500.0,0.00012997,2]
[346969904,1735440547353,-538.99,0.00012997,2]
[346969905,1735440547374,-500.0,0.00012997,2]
[346969906,1735440547394,-500.0,0.00012997,2]
[346969907,1735440547415,-500.0,0.00012997,2]
[346969908,1735440547435,-500.0,0.00012997,2]
[346969909,1735440547456,-583.07,0.00012997,2]
[346969910,1735440547477,-500.0,0.00012997,2]
[346969911,1735440547498,-500.0,0.00012997,2]
[346969912,1735440547519,-500.0,0.00012997,2]
[346969913,1735440547539,-500.0,0.00012997,2]
[346969914,1735440547560,-500.0,0.00012997,2]
[346969915,1735440547581,-500.0,0.00012997,2]
[346969916,1735440547601,-579.98,0.00012997,2]
[346969917,1735440547623,-500.0,0.00012997,2]
[346969918,1735440547643,-708.96,0.00012997,2]
[346969919,1735440547665,-500.0,0.00012997,2]
[346969920,1735440547686,-500.0,0.00012997,2]
[346969921,1735440547708,-500.0,0.00012997,2]
[346969922,1735440547729,-500.0,0.00012997,2]
[346969923,1735440547751,-1216.51,0.00012997,2]
[346969924,1735440547773,-500.0,0.00012997,2]
[346969925,1735440547795,-500.0,0.00012997,2]
[346969926,1735440547816,-500.0,0.00012997,2]
[346969927,1735440547836,-500.0,0.00012997,2]
[346969928,1735440547857,-500.0,0.00012997,2]
[346969929,1735440547879,-505.45346836,0.00012997,2]
[346969930,1735440547903,-500.0,0.00012997,2]
[346969931,1735440547924,-500.0,0.00012997,2]
[346969932,1735440547947,-500.0,0.00012997,2]
[346969933,1735440547970,-500.0,0.00012997,2]
[346969934,1735440547992,-500.0,0.00012997,2]
[346969935,1735440548015,-500.0,0.00012997,2]
[346969936,1735440548036,-278.95983926,0.00012997,2]
[346969937,1735440548058,-308.96,0.00012997,2]
[346969938,1735440548079,-500.0,0.00012997,2]
[346969939,1735440548102,-500.0,0.00012997,2]
[346969940,1735440548123,-500.0,0.00012997,2]
[346969941,1735440548145,-252.56,0.00012998,2]
[346969942,1735440548167,-500.0,0.00012998,2]
[346969943,1735440548187,-500.0,0.00012998,2]
[346969944,1735440548208,-340.50852784,0.00012998,2]
[346969945,1735440548227,-434.41773625,0.00012998,2]
[346969946,1735440548247,-501.2611629,0.00012998,2]
[346969947,1735440548268,-504.08565108,0.00012998,2]
[346969948,1735440548289,-505.21582161,0.00012998,2]
[346969949,1735440548310,-501.80570496,0.00012998,2]
[346969950,1735440548330,-327.32534657,0.00012998,2]
[346969951,1735440548350,-500.0,0.00012998,2]
[346969952,1735440548370,-502.21881966,0.00012998,2]
[346969953,1735440548392,-501.041565,0.00012998,2]
[346969954,1735440548413,-612.02889187,0.00012998,2]
[346969955,1735440548433,-502.1316817,0.00012998,2]
[346969956,1735440548455,-373.05575786,0.00012998,2]
[346969957,1735440548476,-500.0,0.00012998,2]
[346969958,1735440548496,-500.87215255,0.00012998,2]
[346969959,1735440548516,-502.8188696,0.00012998,2]
[346969960,1735440548536,-479.0,0.00012998,2]
[346969961,1735440548557,-500.0,0.00012998,2]
[346969962,1735440548577,-500.0,0.00012998,2]
[346969963,1735440548597,-500.0,0.00012998,2]
[346969964,1735440548618,-500.0,0.00012998,2]
[346969965,1735440548638,-502.04561206,0.00012998,2]
[346969966,1735440548659,-502.3965026,0.00012998,2]
[346969967,1735440548679,-500.0,0.00012998,2]
[346969968,1735440548700,-500.0,0.00012998,2]
[346969969,1735440548720,-569.62,0.00012998,2]
[346969970,1735440548740,-430.53737344,0.00012998,2]
[346969972,1735440567833,500.0,0.00025,120]
[346969973,1735440620407,1043.292,0.00025,120]
[346970000,1735440632741,-151.08301307,0.0001299,2]
[346970002,1735440632752,-500.0,0.00012995,2]
[346970004,1735440632762,-500.0,0.00012995,2]
[346970006,1735440632772,-46.75570489,0.00012996,2]
[346970098,1735440638547,-512.01429511,0.00012996,2]
[346970099,1735440638557,-500.0,0.00012996,2]
[346970100,1735440638566,-463.40075622,0.00012996,2]
[346970101,1735440638575,-500.0,0.00012996,2]
[346970102,1735440638584,-679.42,0.00012996,2]
[346970103,1735440638593,-1165.82,0.00012996,2]
[346970104,1735440638602,-500.0,0.00012997,2]
[346970105,1735440638612,-500.0,0.00012997,2]
[346970106,1735440638621,-297.47,0.00012997,2]
[346970107,1735440638630,-500.0,0.00012997,2]
[346970108,1735440638639,-500.0,0.00012997,2]
[346970109,1735440638648,-500.0,0.00012997,2]
[346970110,1735440638657,-25110.56,0.00012997,2]
[346970111,1735440638666,-500.0,0.00012997,2]
[346970112,1735440638676,-500.0,0.00012997,2]
[346970113,1735440638685,-500.0,0.00012997,2]
[346970114,1735440638694,-500.0,0.00012997,2]
[346970115,1735440638703,-500.0,0.00012997,2]
[346970116,1735440638712,-500.0,0.00012997,2]
[346970117,1735440638721,-69.46262656,0.00012998,2]
[346970118,1735440638730,-500.0,0.00012998,2]
[346970119,1735440638739,-500.0,0.00012998,2]
[346970120,1735440638748,-500.0,0.00012998,2]
[346970121,1735440638757,-500.0,0.00012998,2]
[346970122,1735440638767,-500.0,0.00012998,2]
[346970123,1735440638776,-500.0,0.00012998,2]
[346970124,1735440638785,-500.0,0.00012998,2]
[346970125,1735440638794,-500.0,0.00012998,2]
[346970126,1735440638803,-500.0,0.00012998,2]
[346970127,1735440638812,-515.69877494,0.00012998,2]
[346970128,1735440638821,-500.0,0.00012998,2]
[346970129,1735440638830,-500.0,0.00012998,2]
[346970130,1735440638840,-501.40238604,0.00012998,2]
[346970131,1735440638851,-885.21,0.00012998,2]
[346970132,1735440638861,-503.23685219,0.00012998,2]
[346970133,1735440638871,-500.0,0.00012998,2]
[346970134,1735440638881,-504.55693827,0.00012998,2]
[346970135,1735440638892,-501.65963515,0.00012998,2]
[346970136,1735440638901,-500.0,0.00012998,2]
[346970137,1735440638912,-503.80387486,0.00012998,2]
[346970138,1735440638921,-503.99506813,0.00012998,2]
[346970139,1735440638937,-501.72478121,0.00012998,2]
[346970140,1735440638946,-502.48559827,0.00012998,2]
[346970141,1735440638956,-500.0,0.00012998,2]
[346970142,1735440638965,-494.5,0.00012998,2]
[346970143,1735440638977,-742.25,0.00012998,2]
[346970144,1735440638987,-500.0,0.00012998,2]
[346970145,1735440638998,-500.0,0.00012998,2]
[346970146,1735440639007,-500.0,0.00012998,2]
[346970147,1735440639017,-502.0493717,0.00012998,2]
[346970148,1735440639027,-505.75095665,0.00012998,2]
[346970149,1735440639036,-529.08146239,0.00012998,2]
[346970150,1735440639046,-500.0,0.00012998,2]
[346970151,1735440639056,-500.0,0.00012998,2]
[346970152,1735440639065,-500.0,0.00012998,2]
[346970153,1735440639075,-500.0,0.00012998,2]
[346970154,1735440639085,-500.0,0.00012998,2]
[346970155,1735440639098,-500.0,0.00012998,2]
[346970156,1735440639108,-503.03956369,0.00012998,2]
[346970157,1735440639117,-500.0,0.00012998,2]
[346970158,1735440639128,-503.23126151,0.00012998,2]
[346970159,1735440639138,-500.0,0.00012998,2]
[346970160,1735440639149,-500.0,0.00012998,2]
[346970161,1735440639160,-1013.35,0.00012998,2]
[346970162,1735440639169,-502.88550786,0.00012998,2]
[346970163,1735440639179,-266.35607537,0.00012998,2]
[346970164,1735440639189,-500.0,0.00012998,2]
[346970165,1735440639198,-500.0,0.00012998,2]
[346970166,1735440639208,-500.0,0.00012998,2]
[346970167,1735440639218,-502.78631016,0.00012998,2]
[346970168,1735440639229,-503.0233669,0.00012998,2]
[346970169,1735440639240,-500.0,0.00012998,2]
[346970170,1735440639250,-500.0,0.00012998,2]
[346970171,1735440639261,-500.0,0.00012998,2]
[346970172,1735440639270,-500.0,0.00012998,2]
[346970173,1735440639280,-500.0,0.00012998,2]
[346970174,1735440639290,-500.0,0.00012998,2]
[346970175,1735440639300,-500.0,0.00012998,2]
[346970176,1735440639309,-500.0,0.00012998,2]
[346970177,1735440639319,-500.0,0.00012998,2]
[346970178,1735440639332,-500.0,0.00012998,2]
[346970179,1735440639340,-503.49650351,0.00012998,2]
[346970180,1735440639350,-502.28788854,0.00012998,2]
[346970181,1735440639360,-500.0,0.00012998,2]
[346970182,1735440639369,-503.06838093,0.00012998,2]
[346970183,1735440639379,-500.0,0.00012998,2]
[346970184,1735440639388,-509.7152433,0.00012998,2]
[346970185,1735440639397,-502.60611236,0.00012998,2]
[346970186,1735440639407,-500.0,0.00012998,2]
[346970187,1735440639417,-500.0,0.00012998,2]
[346970188,1735440639426,-500.0,0.00012998,2]
[346970189,1735440639437,-500.0,0.00012999,2]
[346970190,1735440639447,-500.0,0.00012999,2]
[346970191,1735440639456,-500.7143065,0.00012999,2]
[346970192,1735440639465,-756.17935211,0.00013171,2]
[346970193,1735440639475,-500.0,0.00013269,2]
[346970194,1735440639484,-500.0,0.00013269,2]
[346970195,1735440639494,-500.0,0.00013269,2]
[346970196,1735440639503,-500.0,0.00013269,2]
[346970197,1735440639512,-509.70770303,0.00013269,2]
[346970198,1735440639522,-500.0,0.0001327,2]
[346970199,1735440639532,-500.0,0.0001327,2]
[346970200,1735440639542,-500.0,0.0001327,2]
[346970201,1735440639551,-500.0,0.0001327,2]
[346970202,1735440639561,-500.0,0.0001327,2]
[346970203,1735440639570,-500.0,0.0001327,2]
[346970204,1735440639579,-500.0,0.0001327,2]
[346970205,1735440639588,-500.0,0.0001327,2]
[346970206,1735440639597,-500.0,0.0001327,2]
[346970207,1735440639607,-500.0,0.0001327,2]
[346970208,1735440639616,-500.0,0.0001327,2]
[346970209,1735440639625,-500.0,0.0001327,2]
[346970210,1735440639634,-500.0,0.0001327,2]
[346970211,1735440639644,-500.0,0.0001327,2]
[346970212,1735440639653,-500.0,0.0001327,2]
[346970213,1735440639663,-2075.01,0.0001327,2]
[346970214,1735440639672,-370.98413911,0.0001327,2]
[346970215,1735440639689,-500.0,0.0001327,2]
[346970216,1735440639701,-500.0,0.0001327,2]
[346970217,1735440639710,-495.0,0.0001327,2]
[346970218,1735440639719,-500.0,0.0001327,2]
[346970219,1735440639729,-500.0,0.0001327,2]
[346970220,1735440639739,-1130.65,0.0001327,2]
[346970221,1735440639748,-558.77,0.0001327,2]
[346970222,1735440639758,-500.0,0.0001327,2]
[346970223,1735440639767,-679.42,0.0001327,2]
[346970224,1735440639777,-1165.82,0.0001327,2]
[346970225,1735440639787,-500.0,0.00013271,2]
[346970226,1735440639798,-500.0,0.00013271,2]
[346970227,1735440639808,-500.0,0.00013271,2]
[346970228,1735440639818,-699.69,0.00013271,2]
[346970229,1735440639828,-500.0,0.00013271,2]
[346970230,1735440639838,-500.0,0.00013271,2]
[346970231,1735440639848,-538.99,0.00013271,2]
[346970232,1735440639857,-500.0,0.00013271,2]
[346970233,1735440639867,-500.0,0.00013271,2]
[346970234,1735440639876,-500.0,0.00013271,2]
[346970235,1735440639887,-648.08458646,0.00013271,2]
[346970236,1735440639896,-500.0,0.00013271,2]
[346970237,1735440639906,-500.0,0.00013271,2]
[346970238,1735440639915,-500.0,0.00013271,2]
[346970239,1735440639924,-500.0,0.00013271,2]
[346970240,1735440639938,-500.0,0.00013271,2]
[346970241,1735440639947,-500.0,0.00013271,2]
[346970242,1735440639956,-500.0,0.00013271,2]
[346970243,1735440639966,-500.0,0.00013271,2]
[346970244,1735440639975,-500.0,0.00013271,2]
[346970245,1735440639984,-503.63472708,0.00013271,2]
[346970246,1735440639994,-500.0,0.00013271,2]
[346970247,1735440640003,-500.0,0.00013271,2]
[346970248,1735440640014,-500.0,0.00013271,2]
[346970249,1735440640024,-500.0,0.00013271,2]
[346970250,1735440640033,-500.0,0.00013271,2]
[346970251,1735440640043,-500.0,0.00013271,2]
[346970252,1735440640052,-500.0,0.00013271,2]
[346970253,1735440640062,-500.0,0.00013271,2]
[346970254,1735440640071,-159.95962785,0.00013271,2]
[346970255,1735440640081,-500.0,0.00013271,2]
[346970256,1735440640090,-500.0,0.00013271,2]
[346970257,1735440640100,-1919.6,0.00013271,2]
[346970258,1735440640110,-500.0,0.00013271,2]
[346970259,1735440640119,-500.0,0.00013271,2]
[346970260,1735440640128,-500.0,0.00013271,2]
[346970261,1735440640138,-500.0,0.00013271,2]
[346970262,1735440640147,-500.0,0.00013271,2]
[346970263,1735440640157,-25110.56,0.00013271,2]
[346970264,1735440640167,-500.0,0.00013271,2]
[346970265,1735440640176,-500.0,0.00013271,2]
[346970266,1735440640186,-500.0,0.00013271,2]
[346970269,1735440640196,-638.34164512,0.00013272,2]
[346970279,1735440640309,-500.0,0.00013272,2]
[346970280,1735440640319,-582.48,0.00013272,2]
[346970281,1735440640329,-885.21,0.00013272,2]
[346970282,1735440640339,-165.34,0.00013272,2]
[346970283,1735440640348,-500.0,0.00013272,2]
[346970284,1735440640358,-500.0,0.00013272,2]
[346970285,1735440640367,-742.25,0.00013272,2]
[346970286,1735440640377,-500.0,0.00013272,2]
[346970287,1735440640386,-500.0,0.00013272,2]
[346970288,1735440640395,-558.68,0.00013272,2]
[346970289,1735440640405,-500.0,0.00013272,2]
[346970291,1735440640414,-500.0,0.00013272,2]
[346970293,1735440640424,-560.77130947,0.00013272,2]
[346970295,1735440640433,-500.0,0.00013272,2]
[346970297,1735440640443,-503.1594371,0.00013272,2]
[346970298,1735440640452,-502.88698765,0.00013272,2]
[346970299,1735440640462,-500.0,0.00013272,2]
[346970300,1735440640471,-1013.35,0.00013272,2]
[346970301,1735440640482,-500.0,0.00013272,2]
[346970302,1735440640492,-489.66,0.00013272,2]
[346970303,1735440640501,-500.0,0.00013272,2]
[346970304,1735440640510,-500.0,0.00013272,2]
[346970305,1735440640520,-502.25138844,0.00013272,2]
[346970306,1735440640530,-504.91536778,0.00013272,2]
[346970307,1735440640540,-500.0,0.00013272,2]
[346970308,1735440640549,-420.28,0.00013272,2]
[346970309,1735440640559,-504.02376883,0.00013272,2]
[346970310,1735440640568,-388.2365937,0.00013272,2]
[346970311,1735440640577,-500.0,0.00013272,2]
[346970312,1735440640587,-576.99697546,0.00013272,2]
[346970313,1735440640596,-500.0,0.00013272,2]
[346970314,1735440640605,-500.0,0.00013272,2]
[346970315,1735440640615,-506.06812657,0.00013272,2]
[346970317,1735440640624,-500.8030453,0.00013273,2]
[346970319,1735440640633,-500.0,0.00013273,2]
[346970321,1735440640643,-151.0,0.000133,2]
[346970323,1735440640652,-505.4169775,0.00013445,2]
[346970325,1735440640661,-500.0,0.00013543,2]
[346970327,1735440640670,-361.40777561,0.00013543,2]
[346970329,1735440640680,-500.0,0.00013543,2]
[346970331,1735440640688,-500.0,0.00013543,2]
[346970332,1735440640698,-500.0,0.00013544,2]
[346970334,1735440640707,-454.56,0.00013544,2]
[346970336,1735440640716,-637.88,0.00013544,2]
[346970338,1735440640726,-610.67539326,0.00013544,2]
[346970340,1735440640735,-500.0,0.00013544,2]
[346970342,1735440640744,-500.0,0.00013544,2]
[346970344,1735440640754,-500.0,0.00013544,2]
[346970346,1735440640763,-503.81349777,0.00013544,2]
[346970348,1735440640773,-500.0,0.00013544,2]
[346970350,1735440640783,-2075.01,0.00013544,2]
[346970352,1735440640792,-500.0,0.00013544,2]
[346970354,1735440640802,-500.0,0.00013544,2]
[346970356,1735440640811,-1130.65,0.00013544,2]
[346970358,1735440640823,-558.77,0.00013544,2]
[346970360,1735440640833,-500.0,0.00013544,2]
[346970363,1735440640843,-679.42,0.00013544,2]
[346970365,1735440640852,-1165.82,0.00013544,2]
[346970367,1735440640861,-500.0,0.00013545,2]
[346970369,1735440640870,-500.0,0.00013545,2]
[346970371,1735440640881,-500.0,0.00013545,2]
[346970373,1735440640890,-699.69,0.00013545,2]
[346970375,1735440640899,-500.0,0.00013545,2]
[346970377,1735440640909,-538.99,0.00013545,2]
[346970379,1735440640918,-500.0,0.00013545,2]
[346970381,1735440640929,-500.0,0.00013545,2]
[346970383,1735440640939,-169.7,0.00013545,2]
[346970385,1735440640948,-151.0,0.00013545,2]
[346970387,1735440640957,-500.0,0.00013545,2]
[346970389,1735440640967,-545.63,0.00013545,2]
[346970391,1735440640989,-1201.765447,0.00013545,2]
[346970392,1735440640999,-1201.765447,0.00013545,2]
[346970395,1735440641009,-500.0,0.00013545,2]
[346970396,1735440641019,-500.0,0.00013545,2]
[346970399,1735440641031,-500.0,0.00013545,2]
[346970401,1735440641040,-500.0,0.00013545,2]
[346970403,1735440641049,-500.0,0.00013545,2]
[346970405,1735440641058,-500.0,0.00013545,2]
[346970407,1735440641067,-500.0,0.00013545,2]
[346970409,1735440641077,-500.0,0.00013545,2]
[346970411,1735440641087,-500.0,0.00013545,2]
[346970413,1735440641096,-500.0,0.00013545,2]
[346970415,1735440641105,-276.818976,0.00013545,2]
[346970417,1735440641114,-151.0,0.00013545,2]
[346970419,1735440641124,-500.0,0.00013545,2]
[346970421,1735440641133,-500.0,0.00013545,2]
[346970423,1735440641142,-151.0,0.00013545,2]
[346970425,1735440641152,-227.435927,0.00013545,2]
[346970427,1735440641161,-155.462926,0.00013545,2]
[346970429,1735440641171,-500.0,0.00013545,2]
[346970431,1735440641180,-227.435927,0.00013545,2]
[346970433,1735440641190,-155.462926,0.00013545,2]
[346970435,1735440641200,-177.758355,0.00013545,2]
[346970437,1735440641209,-177.758355,0.00013545,2]
[346970439,1735440641219,-151.0,0.00013545,2]
[346970441,1735440641227,-151.0,0.00013545,2]
[346970443,1735440641237,-151.0,0.00013545,2]
[346970445,1735440641246,-500.0,0.00013545,2]
[346970447,1735440641255,-500.0,0.00013545,2]
[346970449,1735440641264,-151.0,0.00013545,2]
[346970451,1735440641274,-151.0,0.00013545,2]
[346970453,1735440641284,-160.9658,0.00013545,2]
[346970455,1735440641293,-151.0,0.00013545,2]
[346970457,1735440641302,-151.0,0.00013545,2]
[346970459,1735440641312,-160.9658,0.00013545,2]
[346970461,1735440641321,-1919.6,0.00013545,2]
[346970463,1735440641332,-321.83129599,0.00013545,2]
[346970465,1735440641342,-500.0,0.00013545,2]
[346970467,1735440641351,-500.0,0.00013545,2]
[346970469,1735440641360,-292.533554,0.00013545,2]
[346970471,1735440641369,-330.18,0.00013545,2]
[346970473,1735440641379,-500.0,0.00013545,2]
[346970475,1735440641389,-153.760651,0.00013545,2]
[346970477,1735440641397,-25110.56,0.00013545,2]
[346970479,1735440641407,-151.0,0.00013545,2]
[346970481,1735440641417,-151.0,0.00013545,2]
[346970483,1735440641426,-500.0,0.00013545,2]
[346970485,1735440641438,-304.36745634,0.00013545,2]
[346970487,1735440641447,-283.824463,0.00013545,2]
[346970489,1735440641457,-500.0,0.00013545,2]
[346970491,1735440641467,-283.824463,0.00013545,2]
[346970493,1735440641476,-500.0,0.00013546,2]
[346970495,1735440641487,-885.21,0.00013546,2]
[346970497,1735440641497,-514.04524496,0.00013546,2]
[346970499,1735440641507,-500.0,0.00013546,2]
[346970501,1735440641516,-742.25,0.00013546,2]
[346970503,1735440641526,-500.0,0.00013546,2]
[346970505,1735440641536,-500.0,0.00013546,2]
[346970507,1735440641546,-151.0,0.00013546,2]
[346970509,1735440641555,-151.0,0.00013546,2]
[346970511,1735440641564,-638.1759521,0.00013546,2]
[346970513,1735440641574,-151.0,0.00013546,2]
[346970515,1735440641584,-500.0,0.00013546,2]
[346970517,1735440641593,-500.0,0.00013546,2]
[346970519,1735440641602,-151.0,0.00013546,2]
[346970521,1735440641612,-151.0,0.00013546,2]
[346970524,1735440641622,-625.56,0.00013546,2]
[346970525,1735440641631,-1013.35,0.00013546,2]
[346970527,1735440641640,-151.33274,0.00013546,2]
[346970530,1735440641650,-151.0,0.00013546,2]
[346970531,1735440641660,-151.0,0.00013546,2]
[346970534,1735440641670,-500.0,0.00013546,2]
[346970535,1735440641679,-151.136339,0.00013546,2]
[346970538,1735440641689,-263.67,0.00013546,2]
[346970540,1735440641698,-500.0,0.00013546,2]
[346970542,1735440641707,-151.0,0.00013546,2]
[346970544,1735440641717,-1201.765447,0.00013546,2]
[346970546,1735440641726,-1201.765447,0.00013546,2]
[346970548,1735440641736,-500.0,0.00013546,2]
[346970549,1735440641745,-276.818976,0.00013546,2]
[346970552,1735440641755,-227.435927,0.00013546,2]
[346970554,1735440641764,-227.435927,0.00013546,2]
[346970555,1735440641774,-177.758355,0.00013546,2]
[346970557,1735440641784,-177.758355,0.00013546,2]
[346970560,1735440641794,-640.58,0.00013546,2]
[346970562,1735440641803,-151.0,0.00013546,2]
[346970564,1735440641813,-151.0,0.00013546,2]
[346970566,1735440641822,-151.0,0.00013546,2]
[346970568,1735440641832,-500.0,0.00013546,2]
[346970570,1735440641841,-151.0,0.00013546,2]
[346970572,1735440641851,-151.0,0.00013546,2]
[346970574,1735440641861,-160.9658,0.00013546,2]
[346970576,1735440641870,-151.0,0.00013546,2]
[346970578,1735440641879,-151.0,0.00013546,2]
[346970580,1735440641889,-160.9658,0.00013546,2]
[346970582,1735440641898,-151.0,0.00013546,2]
[346970584,1735440641908,-151.0,0.00013546,2]